bitfinex/quotes_BTCUSD_20250320
["timestamp","ask_amount","ask_price","bid_price","bid_amount"]
[1742492816991,0.00861068,84413.0,84412.0,0.5638]
[1742492817413,0.00861068,84413.0,84412.0,0.575646]
[1742492817641,0.0041692,84413.0,84412.0,0.858979]
[1742492818557,0.0021692,84413.0,84412.0,0.858979]
[1742492818729,0.0021692,84413.0,84412.0,0.800733]
[1742492818928,0.0021692,84413.0,84412.0,0.5638]
[1742492819131,0.0001692,84413.0,84412.0,0.800733]
[1742492819653,0.00457371,84413.0,84412.0,0.800733]
[1742492819875,0.00457371,84413.0,84412.0,2.300733]
[1742492820084,0.0001692,84413.0,84412.0,2.312579]
[1742492821067,0.00457371,84413.0,84412.0,2.312579]
[1742492821259,0.0001692,84413.0,84412.0,2.312579]
[1742492825081,0.0001692,84413.0,84412.0,2.51447603]
[1742492827032,0.5370992,84413.0,84412.0,1.5]
[1742492827260,0.30458376,84413.0,84412.0,1.5]
[1742492827652,0.54151376,84413.0,84412.0,1.5]
[1742492827875,0.55335976,84413.0,84412.0,1.5]
[1742492828074,0.55335976,84413.0,84406.0,0.56388]
[1742492828075,0.236945,84408.0,84406.0,0.56388]
[1742492828258,0.236941,84409.0,84406.0,0.56388]
[1742492828469,0.00441456,84408.0,84406.0,0.56388]
[1742492829072,0.236947,84407.0,84406.0,0.56388]
[1742492829273,0.00041894,84407.0,84406.0,0.56388]
[1742492829469,0.2417805,84407.0,84406.0,0.56388]
[1742492829668,0.2536275,84407.0,84406.0,0.56388]
[1742492830051,0.5536275,84407.0,84406.0,1.5]
[1742492830254,0.5536275,84407.0,84399.0,0.0003382]
[1742492830255,0.548812,84401.0,84399.0,0.0003382]
[1742492830484,0.63120992,84401.0,84399.0,0.0003382]
[1742492830889,0.54136192,84401.0,84399.0,0.0003382]
[1742492831299,0.54136192,84401.0,84400.0,0.0121864]
[1742492831300,0.00439792,84401.0,84400.0,0.0121864]
[1742492831687,0.01104376,84407.0,84406.0,0.236949]
[1742492831892,0.01104376,84407.0,84406.0,0.249796]
[1742492832108,0.00480081,84407.0,84406.0,0.248796]
[1742492832524,0.00480081,84407.0,84406.0,0.384436]
[1742492833131,0.00041894,84407.0,84406.0,0.384436]
[1742492833318,0.00041894,84407.0,84406.0,0.50863303]
[1742492833526,0.00041894,84407.0,84406.0,2.00863303]
[1742492834550,0.00041894,84407.0,84406.0,2.03246621]
[1742492835375,0.00041894,84407.0,84406.0,2.03446621]
[1742492835609,0.00041894,84407.0,84406.0,2.03646621]
[1742492835811,0.00041894,84407.0,84406.0,2.60034621]
[1742492838061,0.00041894,84407.0,84406.0,2.66128706]
[1742492838606,0.00041894,84407.0,84406.0,2.64674621]
[1742492839025,0.00041894,84407.0,84406.0,2.64274621]
[1742492839238,0.00041894,84407.0,84406.0,2.64774621]
[1742492839427,0.00141894,84407.0,84406.0,2.65274621]
[1742492839949,0.00141894,84407.0,84406.0,3.15668632]
[1742492840384,9.4e-07,84407.0,84406.0,3.15668632]
[1742492840587,1.4e-07,84413.0,84412.0,0.49824185]
[1742492840789,1.4e-07,84413.0,84412.0,0.61781688]
[1742492840990,1.4e-07,84413.0,84412.0,1.03161614]
[1742492841945,1.4e-07,84413.0,84412.0,1.03561614]
[1742492842361,1.4e-07,84413.0,84412.0,1.04333485]
[1742492842916,1.4e-07,84413.0,84412.0,1.04633485]
[1742492843070,1.4e-07,84413.0,84412.0,1.05233485]
[1742492843678,1.4e-07,84413.0,84412.0,2.55233485]
[1742492844323,1.4e-07,84413.0,84412.0,2.65871529]
[1742492844514,1.4e-07,84413.0,84412.0,2.57551529]
[1742492844715,1.4e-07,84413.0,84412.0,2.58151529]
[1742492844894,1.4e-07,84413.0,84412.0,2.53441529]
[1742492845107,1.4e-07,84413.0,84412.0,2.52841529]
[1742492846069,1.4e-07,84413.0,84412.0,2.53441529]
[1742492846282,1.4e-07,84413.0,84412.0,2.52841529]
[1742492846724,1.4e-07,84413.0,84412.0,2.53441529]
[1742492846935,1.4e-07,84413.0,84412.0,2.52841529]
[1742492847364,1.4e-07,84413.0,84412.0,2.52541529]
[1742492847510,1.4e-07,84413.0,84412.0,2.52941529]
[1742492849490,1.4e-07,84413.0,84412.0,1.87997603]
[1742492849687,1.4e-07,84413.0,84412.0,2.01557603]
[1742492850733,1.4e-07,84413.0,84412.0,2.01157603]
[1742492851132,1.4e-07,84413.0,84412.0,2.01057603]
[1742492851633,1.4e-07,84413.0,84412.0,2.12511688]
[1742492852195,1.4e-07,84413.0,84412.0,2.20611688]
[1742492852606,1.4e-07,84413.0,84412.0,2.20911688]
[1742492852852,1.4e-07,84413.0,84412.0,2.20611688]
[1742492853025,1.4e-07,84413.0,84412.0,2.66711614]
[1742492853242,1.4e-07,84413.0,84412.0,2.67111614]
[1742492853442,1.4e-07,84413.0,84412.0,2.68900086]
[1742492853849,1.4e-07,84413.0,84412.0,2.69400086]
[1742492854052,1.4e-07,84413.0,84412.0,2.69200086]
[1742492854450,1.4e-07,84413.0,84412.0,2.69700086]
[1742492854814,1.4e-07,84413.0,84412.0,2.67011614]
[1742492855237,1.4e-07,84413.0,84412.0,2.67611614]
[1742492856304,1.4e-07,84413.0,84412.0,2.97611614]
[1742492856633,1.4e-07,84413.0,84412.0,2.96511614]
[1742492856930,1.4e-07,84413.0,84412.0,2.97711614]
[1742492857702,1.4e-07,84413.0,84412.0,2.83551614]
[1742492857891,1.4e-07,84413.0,84412.0,2.89011614]
[1742492858275,1.4e-07,84413.0,84412.0,2.35589414]
[1742492858468,1.4e-07,84413.0,84412.0,2.53471369]
[1742492858672,1.4e-07,84413.0,84412.0,2.52871369]
[1742492858898,1.4e-07,84413.0,84412.0,2.54325454]
[1742492859076,1.4e-07,84413.0,84412.0,2.39911369]
[1742492859232,1.4e-07,84413.0,84412.0,2.53471369]
[1742492859636,1.4e-07,84413.0,84412.0,2.52871369]
[1742492859840,1.4e-07,84413.0,84412.0,2.29311369]
[1742492860037,1.4e-07,84413.0,84412.0,2.43471369]
[1742492860236,1.4e-07,84413.0,84412.0,2.42871369]
[1742492860437,1.4e-07,84413.0,84412.0,2.42271369]
[1742492860621,1.4e-07,84413.0,84412.0,2.42571369]
[1742492860826,1.4e-07,84413.0,84412.0,2.42871369]
[1742492862368,1.4e-07,84413.0,84412.0,2.42571369]
[1742492862846,1.4e-07,84413.0,84412.0,2.29311369]
[1742492863046,1.4e-07,84413.0,84412.0,2.17053866]
[1742492863403,1.4e-07,84413.0,84412.0,2.30451666]
[1742492863555,1.4e-07,84413.0,84412.0,2.17353866]
[1742492863788,0.29807614,84413.0,84412.0,1.5063384]
[1742492863983,0.29807614,84413.0,84412.0,0.0063384]
[1742492864173,0.30253757,84413.0,84412.0,0.0063384]
[1742492864376,0.60253757,84413.0,84412.0,0.0033384]
[1742492864598,0.60253757,84413.0,84412.0,0.0053384]
[1742492864800,0.8021126,84413.0,84412.0,0.0053384]
[1742492865030,0.8021126,84413.0,84412.0,0.0003384]
[1742492865417,1.37928712,84413.0,84412.0,0.002]
[1742492865647,1.40428712,84413.0,84406.0,0.00011535]
[1742492865831,0.548812,84401.0,84400.0,0.0003384]
[1742492866030,0.628112,84401.0,84400.0,0.00045463]
[1742492866229,0.63255929,84401.0,84400.0,0.00045463]
[1742492866440,0.75213432,84401.0,84400.0,0.00045463]
[1742492866845,0.77071252,84401.0,84400.0,0.00045463]
[1742492867246,0.95629052,84401.0,84400.0,0.00045463]
[1742492867420,2.17270752,84401.0,84400.0,0.00045463]
[1742492867628,1.51236952,84401.0,84400.0,0.00045463]
[1742492867971,1.43423352,84401.0,84400.0,0.00045463]
[1742492868844,1.13820252,84401.0,84400.0,0.00045463]
[1742492870020,1.06612952,84401.0,84400.0,0.00045463]
[1742492870581,0.95629052,84401.0,84400.0,0.00045463]
[1742492870785,1.06047652,84401.0,84400.0,0.00045463]
[1742492872176,0.95629052,84401.0,84400.0,0.00045463]
[1742492872351,0.82031252,84401.0,84400.0,0.00045463]
[1742492872720,0.80173432,84401.0,84400.0,0.00045463]
[1742492872856,0.63255929,84401.0,84400.0,0.00045463]
[1742492873274,0.00444729,84401.0,84400.0,0.00045463]
[1742492873477,0.236964,84401.0,84400.0,0.00045463]
[1742492873658,0.236964,84401.0,84400.0,1.50045463]
[1742492873659,0.24128853,84401.0,84400.0,1.50045463]
[1742492873881,0.00432453,84401.0,84400.0,1.74926863]
[1742492874114,0.26529558,84410.0,84405.0,0.248799]
[1742492874350,0.236937,84411.0,84405.0,0.248799]
[1742492874574,0.011846,84411.0,84405.0,0.236952]
[1742492874785,0.011846,84410.0,84405.0,0.236952]
[1742492875468,0.3,84407.0,84405.0,0.236952]
[1742492875706,0.00449373,84406.0,84404.0,0.236954]
[1742492876836,0.00449373,84406.0,84405.0,0.236952]
[1742492877047,0.00449373,84406.0,84405.0,1.736952]
[1742492877311,0.00449373,84406.0,84405.0,1.748799]
[1742492877553,0.0001692,84406.0,84405.0,1.753421]
[1742492878946,0.011847,84403.0,84402.0,0.13564]
[1742492879120,0.2371192,84406.0,84402.0,0.13564]
[1742492879323,0.00436768,84405.0,84404.0,0.248802]
[1742492879526,0.0001692,84406.0,84404.0,0.248802]
[1742492879723,0.00436768,84405.0,84404.0,0.248802]
[1742492880579,0.00436768,84405.0,84402.0,0.13564]
[1742492880785,0.236958,84404.0,84402.0,0.13564]
[1742492880959,0.236958,84403.0,84402.0,0.13564]
[1742492881160,0.24132409,84403.0,84402.0,0.13564]
[1742492881356,0.00436609,84403.0,84402.0,0.13564]
[1742492881812,0.24132409,84403.0,84402.0,0.13564]
[1742492882607,0.30436609,84403.0,84402.0,0.13564]
[1742492882744,0.54132409,84403.0,84402.0,0.13564]
[1742492882946,0.55317109,84403.0,84402.0,0.13564]
[1742492883371,0.55317109,84403.0,84400.0,0.00045463]
[1742492883372,0.548812,84401.0,84400.0,0.00045463]
[1742492883971,0.67275312,84401.0,84400.0,0.00045463]
[1742492884391,0.69170982,84401.0,84400.0,0.00045463]
[1742492884622,0.80394482,84401.0,84400.0,0.00035508]
[1742492884815,0.82465682,84401.0,84400.0,0.0002555]
[1742492886270,0.69170982,84401.0,84400.0,0.0002555]
[1742492886758,0.89797582,84401.0,84400.0,0.0002555]
[1742492887188,0.69133182,84401.0,84400.0,0.0002555]
[1742492887532,0.70034557,84401.0,84400.0,0.0002555]
[1742492887944,0.57175679,84401.0,84400.0,0.0002555]
[1742492888610,0.32294479,84401.0,84400.0,0.0002555]
[1742492888829,0.55990879,84401.0,84400.0,0.0002555]
[1742492889054,0.32294479,84401.0,84400.0,0.0002555]
[1742492889292,0.32294479,84401.0,84400.0,0.2490695]
[1742492889293,0.02294479,84401.0,84400.0,0.2490695]
[1742492889564,0.32294479,84401.0,84400.0,0.2490695]
[1742492889795,0.02294479,84401.0,84400.0,0.2490695]
[1742492890030,0.32294479,84401.0,84400.0,0.2490695]
[1742492890273,0.02294479,84401.0,84400.0,0.2490695]
[1742492890501,0.27175679,84401.0,84400.0,0.0002555]
[1742492890741,0.27168877,84401.0,84400.0,0.0002555]
[1742492890974,0.25311007,84401.0,84400.0,0.0002555]
[1742492891205,0.25411007,84401.0,84400.0,0.0002555]
[1742492891430,0.00529807,84401.0,84400.0,0.0002555]
[1742492891659,0.00429807,84401.0,84400.0,0.2372215]
[1742492891875,0.00429807,84401.0,84400.0,0.0002555]
[1742492892083,0.536959,84403.0,84400.0,0.2372195]
[1742492892337,0.00429807,84401.0,84400.0,0.2372195]
[1742492892563,0.3,84403.0,84401.0,0.248809]
[1742492892819,0.3,84402.0,84401.0,0.236961]
[1742492893049,0.311847,84405.0,84400.0,0.2490695]
[1742492893473,0.3,84402.0,84400.0,0.2490695]
[1742492893730,0.236961,84402.0,84401.0,1.5]
[1742492894171,0.236961,84402.0,84400.0,0.0002555]
[1742492894614,0.236964,84401.0,84400.0,0.0002555]
[1742492895119,0.248812,84401.0,84400.0,0.0002555]
[1742492895635,0.66838703,84401.0,84400.0,0.0002555]
[1742492896395,0.236964,84401.0,84400.0,0.0002555]
[1742492896603,0.301,84402.0,84400.0,0.0002555]
[1742492896821,0.001,84402.0,84401.0,0.248812]
[1742492897691,0.0185771,84405.0,84404.0,0.236955]
[1742492898193,0.0185771,84405.0,84404.0,0.248802]
[1742492899125,0.0185771,84405.0,84404.0,0.236955]
[1742492899416,0.0185771,84405.0,84400.0,0.1358955]
[1742492899417,0.011847,84404.0,84400.0,0.1358955]
[1742492899674,0.011847,84404.0,84400.0,0.0002555]
[1742492899918,0.011847,84403.0,84400.0,0.0002555]
[1742492900143,0.236963,84402.0,84400.0,0.0002555]
[1742492900371,0.0195771,84405.0,84400.0,0.0002555]
[1742492900602,0.0195771,84405.0,84404.0,0.248802]
[1742492900823,0.237953,84405.0,84402.0,0.236958]
[1742492901271,0.236953,84405.0,84402.0,0.236958]
[1742492901514,0.236957,84404.0,84401.0,0.248811]
[1742492901759,0.237957,84404.0,84401.0,0.248811]
[1742492901955,0.237957,84404.0,84401.0,0.236963]
[1742492902154,0.236957,84404.0,84401.0,0.236963]
[1742492903125,0.236957,84404.0,84400.0,0.2490645]
[1742492903126,0.236955,84404.0,84400.0,0.2372195]
[1742492903284,0.00434662,84403.0,84400.0,0.2372195]
[1742492903758,0.00434662,84403.0,84400.0,1.7372195]
[1742492903963,0.00434662,84403.0,84402.0,0.236961]
[1742492904313,0.001,84404.0,84403.0,0.236958]
[1742492904693,0.00534662,84404.0,84403.0,1.748805]
[1742492904909,0.3001692,84406.0,84405.0,0.236952]
[1742492905129,0.0001692,84406.0,84405.0,0.236952]
[1742492905611,0.0001692,84406.0,84405.0,1.736952]
[1742492905824,0.0001692,84406.0,84405.0,1.748799]
[1742492907432,0.011848,84401.0,84399.0,0.0003382]
[1742492907633,0.66838703,84401.0,84399.0,0.0003382]
[1742492909093,0.67138703,84401.0,84399.0,0.0003382]
[1742492909829,0.67176503,84401.0,84399.0,0.0003382]
[1742492910385,0.549192,84400.0,84399.0,1e-08]
[1742492910587,0.89073296,84400.0,84399.0,1e-08]
[1742492910795,1.58277844,84400.0,84399.0,1e-08]
[1742492911905,1.58377844,84400.0,84399.0,1e-08]
[1742492912113,1.58277844,84400.0,84399.0,1e-08]
[1742492912716,1.58377844,84400.0,84399.0,1e-08]
[1742492912920,1.58877844,84400.0,84399.0,0.00100001]
[1742492913338,1.60729638,84400.0,84399.0,1e-08]
[1742492913704,1.61229638,84400.0,84399.0,0.00100001]
[1742492913910,1.63087933,84400.0,84399.0,0.00100001]
[1742492914310,6.37955733,84400.0,84399.0,0.00100001]
[1742492915169,5.24549333,84400.0,84399.0,0.00100001]
[1742492915595,4.49954033,84400.0,84399.0,0.00100001]
[1742492916174,4.41113355,84400.0,84399.0,0.00100001]
[1742492916371,1.13747161,84400.0,84399.0,0.00100001]
[1742492916572,1.02137661,84400.0,84399.0,0.00100001]
[1742492916772,1.32137661,84400.0,84399.0,0.00100001]
[1742492917412,1.24557661,84400.0,84399.0,0.00100001]
[1742492917747,1.24057661,84400.0,84399.0,1e-08]
[1742492917949,1.23957661,84400.0,84399.0,1e-08]
[1742492918081,1.24557661,84400.0,84399.0,1e-08]
[1742492918316,0.84176216,84400.0,84399.0,1e-08]
[1742492918513,0.2776825,84400.0,84399.0,1e-08]
[1742492918973,0.5776825,84400.0,84399.0,1e-08]
[1742492919204,0.0288685,84400.0,84399.0,1e-08]
[1742492919316,0.0228685,84400.0,84399.0,0.01184801]
[1742492919535,0.02458295,84400.0,84399.0,0.24881701]
[1742492919775,0.03488942,84400.0,84399.0,0.24881701]
[1742492919980,0.02888942,84400.0,84399.0,0.24881701]
[1742492920186,0.02458295,84400.0,84399.0,0.24881701]
[1742492920436,0.02958295,84400.0,84399.0,0.24881701]
[1742492920571,0.03388942,84400.0,84399.0,0.27314081]
[1742492920779,0.02888942,84400.0,84399.0,0.27314081]
[1742492920960,0.02288942,84400.0,84399.0,0.27314081]
[1742492921328,0.02888942,84400.0,84399.0,0.27314081]
[1742492921739,0.02588942,84400.0,84399.0,0.27314081]
[1742492922063,0.26485542,84400.0,84399.0,1e-08]
[1742492922236,0.57670342,84400.0,84399.0,1e-08]
[1742492922674,0.56485542,84400.0,84399.0,1e-08]
[1742492922970,0.57670342,84400.0,84399.0,1e-08]
[1742492924033,0.55812047,84400.0,84399.0,1e-08]
[1742492926276,0.6776955,84400.0,84399.0,1e-08]
[1742492926499,0.548858,84385.0,84384.0,0.000338]
[1742492926696,0.67267462,84385.0,84384.0,0.000338]
[1742492927548,0.70828862,84385.0,84384.0,0.000338]
[1742492927755,0.70828862,84385.0,84384.0,0.001338]
[1742492928160,0.70828862,84385.0,84384.0,0.000338]
[1742492928411,1.13697124,84385.0,84384.0,0.000338]
[1742492928615,1.87357792,84385.0,84384.0,1e-06]
[1742492929623,1.87157792,84385.0,84384.0,1e-06]
[1742492929773,1.83351124,84385.0,84384.0,1e-06]
[1742492929980,1.83851124,84385.0,84384.0,1e-06]
[1742492930368,1.83551124,84385.0,84384.0,1e-06]
[1742492930869,1.51357324,84385.0,84384.0,1e-06]
[1742492931094,1.51395124,84385.0,84384.0,1e-06]
[1742492931877,1.37831124,84385.0,84384.0,1e-06]
[1742492932085,1.48895124,84385.0,84384.0,1e-06]
[1742492932426,1.51395124,84385.0,84384.0,1e-06]
[1742492933619,1.63352627,84385.0,84384.0,1e-06]
[1742492933828,1.71302627,84385.0,84384.0,1e-06]
[1742492934231,1.59345124,84385.0,84384.0,1e-06]
[1742492934805,1.59349124,84385.0,84384.0,1e-06]
[1742492935177,0.548941,84357.0,84356.0,0.0003382]
[1742492935365,0.55305745,84357.0,84356.0,0.0003382]
[1742492936559,0.55309929,84357.0,84356.0,0.0003382]
[1742492937238,0.55409929,84357.0,84356.0,0.0003382]
[1742492937645,0.56620072,84357.0,84356.0,0.0003382]
[1742492937853,0.70615055,84357.0,84356.0,0.0003382]
[1742492938059,0.68577575,84357.0,84356.0,0.0003382]
[1742492938243,0.70436408,84357.0,84356.0,0.0003382]
[1742492938441,0.71331885,84357.0,84356.0,0.0003382]
[1742492939144,0.71131885,84357.0,84356.0,0.0003382]
[1742492939343,0.71469685,84357.0,84356.0,0.0003382]
[1742492939588,0.549009,84334.0,84333.0,0.1287]
[1742492939960,0.55311956,84334.0,84333.0,0.1287]
[1742492940797,0.249014,84332.0,84327.0,0.0003384]
[1742492941031,0.549014,84332.0,84331.0,0.001]
[1742492941389,0.55303889,84332.0,84331.0,0.001]
[1742492942805,0.30402489,84332.0,84331.0,0.250018]
[1742492943205,0.30502489,84332.0,84331.0,0.250018]
[1742492943400,0.30502489,84332.0,84331.0,0.001]
[1742492943401,0.54218189,84332.0,84331.0,0.001]
[1742492943619,0.30402489,84332.0,84331.0,1.501]
[1742492944083,0.54318189,84332.0,84331.0,1.501]
[1742492944285,0.55503889,84332.0,84331.0,1.501]
[1742492944875,0.54318189,84332.0,84331.0,1.501]
[1742492945085,0.30602489,84332.0,84331.0,1.501]
[1742492945302,0.56177382,84332.0,84331.0,1.501]
[1742492945430,0.56277382,84332.0,84331.0,1.501]
[1742492945637,0.57463082,84332.0,84331.0,1.501]
[1742492946017,0.57463082,84332.0,84331.0,0.001]
[1742492949272,0.69420585,84332.0,84331.0,0.001]
[1742492950237,0.69220585,84332.0,84331.0,0.001]
[1742492950613,0.69620585,84332.0,84331.0,0.001]
[1742492951042,0.69520585,84332.0,84331.0,0.001]
[1742492951223,0.7069357,84332.0,84331.0,0.001]
[1742492953228,0.56003889,84332.0,84331.0,0.001]
[1742492956305,0.57863175,84332.0,84331.0,0.0013386]
[1742492957810,0.56677475,84332.0,84331.0,0.0013386]
[1742492958018,0.57863175,84332.0,84331.0,0.0013386]
[1742492963555,0.69820678,84332.0,84331.0,0.0013386]
[1742492963767,2.09508792,84332.0,84331.0,0.0013386]
[1742492963961,2.09508792,84332.0,84318.0,0.0003382]
[1742492963962,0.549056,84318.0,84317.0,0.0003384]
[1742492964191,0.67263054,84318.0,84317.0,0.0003384]
[1742492964430,0.249104,84302.0,84301.0,0.001]
[1742492964605,0.549104,84302.0,84301.0,0.001]
[1742492964836,0.55308225,84302.0,84301.0,0.001]
[1742492965038,0.30397825,84302.0,84301.0,0.238245]
[1742492965239,0.30404262,84302.0,84301.0,0.250107]
[1742492965438,0.01520976,84302.0,84301.0,0.250107]
[1742492965641,0.01520976,84302.0,84301.0,0.390449]
[1742492965845,0.01123151,84302.0,84301.0,0.513349]
[1742492966621,0.01123151,84302.0,84301.0,0.514349]
[1742492967056,6.437e-05,84302.0,84301.0,0.514349]
[1742492967208,6.437e-05,84302.0,84301.0,0.63392403]
[1742492968195,6.437e-05,84302.0,84301.0,0.63426263]
[1742492968401,6.437e-05,84302.0,84301.0,0.49854263]
[1742492968636,6.437e-05,84302.0,84301.0,0.63426263]
[1742492969380,6.437e-05,84302.0,84301.0,0.5146876]
[1742492969564,6.437e-05,84302.0,84301.0,0.53888854]
[1742492969981,6.437e-05,84302.0,84301.0,0.40316854]
[1742492970183,6.437e-05,84302.0,84301.0,0.53888854]
[1742492973526,6.437e-05,84302.0,84301.0,2.03888854]
[1742492976303,6.437e-05,84302.0,84301.0,2.15846357]
[1742492977278,6.437e-05,84302.0,84301.0,2.17300442]
[1742492977511,6.437e-05,84302.0,84301.0,2.58680368]
[1742492977713,6.437e-05,84302.0,84301.0,2.46217729]
[1742492977910,6.437e-05,84302.0,84301.0,2.59789729]
[1742492978674,6.437e-05,84302.0,84301.0,2.59689729]
[1742492978877,6.437e-05,84302.0,84301.0,2.58780368]
[1742492979659,6.437e-05,84302.0,84301.0,2.59664664]
[1742492983512,6.437e-05,84302.0,84301.0,2.58210579]
[1742492984451,6.437e-05,84302.0,84301.0,2.43754283]
[1742492984650,6.437e-05,84302.0,84301.0,2.57326283]
[1742492984852,6.437e-05,84302.0,84301.0,2.43754283]
[1742492985060,6.437e-05,84302.0,84301.0,2.57326283]
[1742492985263,6.437e-05,84302.0,84301.0,2.57126283]
[1742492986088,6.437e-05,84302.0,84301.0,2.57326283]
[1742492986929,6.437e-05,84302.0,84301.0,2.57126283]
[1742492987321,6.437e-05,84302.0,84301.0,2.15746357]
[1742492988503,6.437e-05,84302.0,84301.0,2.15946357]
[1742492989511,6.437e-05,84302.0,84301.0,1.90416854]
[1742492989712,6.437e-05,84302.0,84301.0,1.91232654]
[1742492990131,6.437e-05,84302.0,84301.0,1.66321954]
[1742492990330,6.437e-05,84302.0,84301.0,1.53940154]
[1742492990542,6.437e-05,84302.0,84301.0,1.77664654]
[1742492991147,6.437e-05,84302.0,84301.0,1.78126854]
[1742492991350,6.437e-05,84302.0,84301.0,1.91694854]
[1742492992480,6.437e-05,84302.0,84301.0,1.8907476]
[1742492992616,6.437e-05,84302.0,84301.0,1.8927476]
[1742492993629,6.437e-05,84302.0,84301.0,2.11745304]
[1742492995522,6.437e-05,84302.0,84301.0,1.99631389]
[1742492995725,6.437e-05,84302.0,84301.0,2.17899389]
[1742492997010,7.7e-07,84314.0,84313.0,0.39553385]
[1742492997209,7.7e-07,84314.0,84313.0,0.75120782]
[1742492997641,7.7e-07,84314.0,84313.0,1.06002143]
[1742492997835,7.7e-07,84314.0,84313.0,2.56002143]
[1742492998376,0.11741073,84345.0,84344.0,0.253602]
[1742492998691,0.11741073,84345.0,84344.0,0.389282]
[1742492999046,0.01105929,84345.0,84344.0,1.889282]
[1742492999248,0.0001693,84353.0,84352.0,0.248956]
[1742492999634,0.00414445,84353.0,84352.0,0.24937494]
[1742493000034,0.0001693,84353.0,84352.0,0.24937494]
[1742493000236,0.01148417,84353.0,84352.0,0.24937494]
[1742493000460,0.0001693,84353.0,84352.0,0.24937494]
[1742493000664,0.00414445,84353.0,84352.0,0.24937494]
[1742493000862,0.00414445,84353.0,84352.0,0.25399694]
[1742493001263,0.00714445,84353.0,84352.0,0.25399694]
[1742493001823,0.00914445,84353.0,84352.0,0.25399694]
[1742493002200,0.0051693,84353.0,84352.0,0.25399694]
[1742493002769,0.0140233,84353.0,84352.0,0.00041894]
[1742493002964,0.40065063,84353.0,84352.0,0.00041894]
[1742493003216,0.39865063,84353.0,84352.0,0.00041894]
[1742493003822,0.51922566,84353.0,84352.0,0.00041894]
[1742493004348,0.011857,84333.0,84328.0,0.237168]
[1742493004644,0.311857,84335.0,84330.0,0.237162]
[1742493004840,0.00402733,84332.0,84330.0,0.237162]
[1742493005412,0.3,84335.0,84334.0,0.011857]
[1742493005620,0.3,84339.0,84335.0,0.011857]
[1742493005821,0.3,84339.0,84337.0,0.248998]
[1742493006237,0.31859163,84339.0,84338.0,0.011857]
[1742493006455,0.31859163,84339.0,84338.0,0.248998]
[1742493006660,0.01859163,84339.0,84338.0,0.248998]
[1742493006871,0.01859163,84339.0,84338.0,0.38926]
[1742493007063,0.0814,84362.0,84352.0,0.253578]
[1742493007259,0.01858984,84356.0,84352.0,0.253578]
[1742493008437,0.01858984,84356.0,84352.0,0.25369418]
[1742493008438,0.00419663,84353.0,84352.0,0.25369418]
[1742493008758,0.0001693,84353.0,84352.0,0.25369418]
[1742493009081,0.00419663,84353.0,84352.0,0.25469418]
[1742493009217,0.0001693,84353.0,84352.0,0.25469418]
[1742493009430,0.00419663,84353.0,84352.0,0.25469418]
[1742493009994,0.00919663,84353.0,84352.0,0.25469418]
[1742493010958,0.00919663,84353.0,84352.0,0.25007218]
[1742493011552,0.00919663,84353.0,84352.0,0.25469418]
[1742493011983,0.00919663,84353.0,84352.0,0.25369418]
[1742493013254,0.0051693,84353.0,84352.0,0.25369418]
[1742493013409,0.0051693,84353.0,84352.0,0.00011618]
[1742493013610,0.0051693,84353.0,84352.0,0.24907218]
[1742493013611,0.00920873,84353.0,84352.0,0.24907218]
[1742493013810,0.00920873,84353.0,84352.0,0.00011618]
[1742493013994,0.0051693,84353.0,84352.0,0.00011618]
[1742493014198,0.00920873,84353.0,84352.0,0.24907218]
[1742493015007,0.01120873,84353.0,84352.0,0.24907218]
[1742493016001,0.01120873,84353.0,84352.0,0.00011618]
[1742493016610,0.26689483,84353.0,84352.0,0.00011618]
[1742493016816,0.02979683,84353.0,84352.0,0.00011618]
[1742493017201,0.26689483,84353.0,84352.0,0.00011618]
[1742493018143,0.02979683,84353.0,84352.0,0.00011618]
[1742493018728,0.26689483,84353.0,84352.0,0.00011618]
[1742493018929,0.02979683,84353.0,84352.0,0.00011618]
[1742493019703,0.26689483,84353.0,84352.0,0.00011618]
[1742493020273,0.02979683,84353.0,84352.0,0.00011618]
[1742493020880,0.26689483,84353.0,84352.0,0.00011618]
[1742493022029,0.57874883,84353.0,84352.0,0.00011618]
[1742493022233,0.56016073,84353.0,84352.0,0.00011618]
[1742493022433,0.54830673,84353.0,84352.0,0.00011618]
[1742493022924,0.31020873,84353.0,84352.0,0.00011618]
[1742493023124,0.54730673,84353.0,84352.0,0.00011618]
[1742493023297,0.55030673,84353.0,84352.0,0.00011618]
[1742493023520,0.55430673,84353.0,84352.0,0.00011618]
[1742493023706,0.31720873,84353.0,84352.0,0.23721718]
[1742493024132,0.31320873,84353.0,84352.0,0.00011618]
[1742493024332,0.31620873,84353.0,84352.0,1.50011618]
[1742493024535,0.54930673,84353.0,84352.0,0.00011618]
[1742493025320,0.57089543,84353.0,84352.0,0.00011618]
[1742493025970,0.33379743,84353.0,84352.0,0.00011618]
[1742493026173,0.57089543,84353.0,84352.0,0.00011618]
[1742493027078,0.57089543,84353.0,84352.0,0.00045438]
[1742493029173,0.33379743,84353.0,84352.0,0.00045438]
[1742493029371,0.57089543,84353.0,84352.0,0.00045438]
[1742493029778,0.58274943,84353.0,84352.0,0.00045438]
[1742493031532,0.77842446,84353.0,84352.0,0.00045438]
[1742493031790,1.84112035,84353.0,84352.0,0.00045438]
[1742493032568,0.93891635,84353.0,84352.0,0.00045438]
[1742493032770,1.70644135,84353.0,84352.0,0.00045438]
[1742493032970,1.71044135,84353.0,84352.0,0.00045438]
[1742493033377,1.70581935,84353.0,84352.0,3.8e-07]
[1742493033555,0.94329435,84353.0,84352.0,3.8e-07]
[1742493033920,0.94829435,84353.0,84352.0,3.8e-07]
[1742493034481,0.95318062,84353.0,84352.0,3.8e-07]
[1742493034682,0.97577342,84353.0,84352.0,3.8e-07]
[1742493035634,0.237174,84326.0,84325.0,1.5]
[1742493035835,0.237172,84327.0,84325.0,0.00011602]
[1742493036255,0.2422257,84326.0,84325.0,0.00011602]
[1742493036467,0.0050517,84326.0,84325.0,0.00011602]
[1742493036698,0.25576565,84327.0,84325.0,0.00011602]
[1742493036918,0.0050517,84326.0,84325.0,0.00011602]
[1742493037129,0.249056,84318.0,84317.0,0.02412709]
[1742493037329,0.74383103,84318.0,84317.0,0.02412709]
[1742493037535,1.16486233,84318.0,84317.0,0.02424306]
[1742493037771,0.86880833,84318.0,84317.0,0.02424306]
[1742493037953,0.76744601,84318.0,84317.0,0.00011597]
[1742493038548,0.77650881,84318.0,84317.0,0.00011597]
[1742493038930,0.77650881,84318.0,84317.0,0.00045417]
[1742493039303,0.77850881,84318.0,84317.0,0.00045417]
[1742493039914,0.78150881,84318.0,84317.0,0.00045417]
[1742493040550,0.77950881,84318.0,84317.0,0.00045417]
[1742493040975,0.78250881,84318.0,84317.0,0.00045417]
[1742493041179,0.76391128,84318.0,84317.0,0.00045417]
[1742493041380,0.94837128,84318.0,84317.0,0.00045417]
[1742493041945,0.94537128,84318.0,84317.0,0.00045417]
[1742493042159,0.88848128,84318.0,84317.0,0.00045417]
[1742493042362,0.88548128,84318.0,84317.0,0.00045417]